bitfinex/quotes_BTCUSD_20250902
["timestamp","ask_amount","ask_price","bid_price","bid_amount"]
[1756811598046,0.57530581,110330.0,110320.0,0.00598]
[1756811598963,0.57530581,110330.0,110320.0,0.004]
[1756811599186,0.57530581,110330.0,110320.0,0.00598]
[1756811599422,0.57530581,110330.0,110320.0,0.004]
[1756811602707,0.72698581,110330.0,110320.0,0.004]
[1756811603828,0.72698581,110330.0,110320.0,0.00598]
[1756811604202,0.72698581,110330.0,110320.0,0.004]
[1756811605710,0.57530581,110330.0,110320.0,0.004]
[1756811607557,0.59789423,110330.0,110320.0,0.004]
[1756811608529,0.95360505,110330.0,110320.0,0.004]
[1756811608714,0.59789423,110330.0,110320.0,0.004]
[1756811609130,0.60424314,110330.0,110320.0,0.004]
[1756811610266,0.6042434,110330.0,110320.0,0.004]
[1756811610628,1.06543831,110330.0,110320.0,0.004]
[1756811610842,1.08985049,110330.0,110320.0,0.004]
[1756811611257,1.07628239,110330.0,110320.0,0.004]
[1756811611505,1.09322503,110330.0,110320.0,0.004]
[1756811612222,1.24514503,110330.0,110320.0,0.004]
[1756811612771,1.58514503,110330.0,110320.0,0.004]
[1756811616532,1.61770164,110330.0,110320.0,0.004]
[1756811617396,1.70326846,110330.0,110320.0,0.004]
[1756811617603,1.70962385,110330.0,110320.0,0.004]
[1756811618262,1.61770786,110330.0,110320.0,0.004]
[1756811621063,1.61770357,110330.0,110320.0,0.004]
[1756811621821,1.61770309,110330.0,110320.0,0.004]
[1756811623106,1.61460309,110330.0,110320.0,0.00598]
[1756811623312,1.61780309,110330.0,110320.0,0.004]
[1756811624575,1.58524648,110330.0,110320.0,0.004]
[1756811629611,1.66360353,110330.0,110320.0,0.004]
[1756811629895,1.7034474,110330.0,110320.0,0.00598]
[1756811630048,1.64262917,110330.0,110320.0,0.004]
[1756811630262,0.76054663,110330.0,110320.0,0.00894]
[1756811630442,0.59914659,110330.0,110320.0,0.00894]
[1756811631054,0.75090659,110330.0,110320.0,0.00894]
[1756811631455,0.59914659,110330.0,110320.0,0.00894]
[1756811631655,0.59279423,110330.0,110320.0,0.00894]
[1756811631861,0.59914667,110330.0,110320.0,0.00894]
[1756811632359,0.59914686,110330.0,110320.0,0.00894]
[1756811633511,0.75090686,110330.0,110320.0,0.00894]
[1756811634830,0.75302686,110330.0,110320.0,0.00894]
[1756811635032,0.75622686,110330.0,110320.0,0.004]
[1756811635248,0.75302686,110330.0,110320.0,0.004]
[1756811635450,0.59914807,110330.0,110320.0,0.00894]
[1756811635752,0.75082807,110330.0,110320.0,0.00894]
[1756811637751,1.10865889,110330.0,110320.0,0.00598]
[1756811638186,1.10865889,110330.0,110320.0,0.004]
[1756811638423,1.13307107,110330.0,110320.0,0.004]
[1756811640572,1.13627107,110330.0,110320.0,0.004]
[1756811641412,1.13627516,110330.0,110320.0,0.004]
[1756811641628,0.98139516,110330.0,110320.0,0.00598]
[1756811641912,1.13299516,110330.0,110320.0,0.00598]
[1756811642129,1.13087516,110330.0,110320.0,0.00894]
[1756811642347,1.13087606,110330.0,110320.0,0.00894]
[1756811643026,1.13299606,110330.0,110320.0,0.00598]
[1756811644656,1.13299606,110330.0,110320.0,0.00894]
[1756811644866,1.12663723,110330.0,110320.0,0.00894]
[1756811645054,0.98139758,110330.0,110320.0,0.00894]
[1756811645259,1.13295758,110330.0,110320.0,0.00894]
[1756811645809,1.1085454,110330.0,110320.0,0.00894]
[1756811647658,0.75280687,110330.0,110320.0,0.00894]
[1756811649522,0.75280687,110330.0,110320.0,0.004]
[1756811649738,0.75584687,110330.0,110320.0,0.004]
[1756811650148,0.91026529,110330.0,110320.0,0.004]
[1756811650964,1.62688722,110330.0,110320.0,0.004]
[1756811651190,1.73190157,110330.0,110320.0,0.004]
[1756811652006,1.35289775,110330.0,110320.0,0.004]
[1756811652194,1.73189963,110330.0,110320.0,0.002]
[1756811652414,1.37621652,110330.0,110320.0,0.002]
[1756811652625,0.18130722,110310.0,110300.0,0.01363103]
[1756811652759,0.70811875,110310.0,110300.0,0.01363103]
[1756811652970,0.70811875,110310.0,110300.0,0.01566103]
[1756811653379,0.73538138,110310.0,110300.0,0.01566103]
[1756811654536,0.73538138,110310.0,110300.0,0.01792757]
[1756811654745,0.73538138,110310.0,110300.0,0.01992757]
[1756811655296,0.37969827,110310.0,110300.0,0.02192757]
[1756811655497,0.73538138,110310.0,110300.0,0.02192757]
[1756811657502,1.09314449,110310.0,110300.0,0.01458103]
[1756811657710,1.18577066,110310.0,110300.0,0.01458103]
[1756811657908,1.52577066,110310.0,110300.0,0.01458103]
[1756811658111,1.5427257,110310.0,110300.0,0.01458103]
[1756811658601,1.5427257,110310.0,110300.0,0.01258103]
[1756811658843,1.63464169,110310.0,110300.0,0.01158103]
[1756811659291,1.67628211,110310.0,110300.0,0.01058103]
[1756811659717,1.67728211,110310.0,110300.0,0.01058103]
[1756811660220,1.66032707,110310.0,110300.0,0.01058103]
[1756811662704,1.66032124,110310.0,110300.0,0.01058103]
[1756811666266,1.66031885,110310.0,110300.0,0.01058103]
[1756811667263,1.66892736,110310.0,110300.0,0.01058103]
[1756811667690,1.68682618,110310.0,110300.0,0.01058103]
[1756811669677,1.68987367,110310.0,110300.0,0.01058103]
[1756811670847,1.53831367,110310.0,110300.0,0.01058103]
[1756811671054,1.59795768,110310.0,110300.0,0.01058103]
[1756811671289,1.62232757,110310.0,110300.0,0.01058103]
[1756811672936,1.57069505,110310.0,110300.0,0.01058103]
[1756811673138,1.58127608,110310.0,110300.0,0.01058103]
[1756811673561,1.58127509,110310.0,110300.0,0.01058103]
[1756811674248,1.59820054,110310.0,110300.0,0.01058103]
[1756811676178,1.69011653,110310.0,110300.0,0.01058103]
[1756811678556,1.81192254,110310.0,110300.0,0.01058103]
[1756811678817,1.78702645,110310.0,110300.0,0.01058103]
[1756811679249,1.75739653,110310.0,110300.0,0.01058103]
[1756811679727,1.76048653,110310.0,110300.0,0.01058103]
[1756811680938,1.78485642,110310.0,110300.0,0.01058103]
[1756811682807,1.81741303,110310.0,110300.0,0.01058103]
[1756811684164,1.81104779,110310.0,110300.0,0.01058103]
[1756811684376,1.81740385,110310.0,110300.0,0.01058103]
[1756811685527,1.79303396,110310.0,110300.0,0.01058103]
[1756811685929,1.79299396,110310.0,110300.0,0.01058103]
[1756811687641,1.84173294,110310.0,110300.0,0.01058103]
[1756811687843,1.84175529,110310.0,110300.0,0.01058103]
[1756811688552,1.83866529,110310.0,110300.0,0.01058103]
[1756811688991,1.84175529,110310.0,110300.0,0.01058103]
[1756811691517,1.84167529,110310.0,110300.0,0.01058103]
[1756811694955,1.84168587,110310.0,110300.0,0.01058103]
[1756811695623,1.68972587,110310.0,110300.0,0.01058103]
[1756811696061,1.84180587,110310.0,110300.0,0.01058103]
[1756811696901,1.68972587,110310.0,110300.0,0.01058103]
[1756811697060,1.84180587,110310.0,110300.0,0.01058103]
[1756811698217,1.59263988,110310.0,110300.0,0.01572103]
[1756811698440,1.68961657,110310.0,110300.0,0.01572103]
[1756811698653,1.69598097,110310.0,110300.0,0.01572103]
[1756811699492,1.74471995,110310.0,110300.0,0.01572103]
[1756811700310,1.74674995,110310.0,110300.0,0.01572103]
[1756811701939,1.84175594,110310.0,110300.0,0.01058103]
[1756811704306,1.81841998,110310.0,110300.0,0.01058103]
[1756811704515,1.84175811,110310.0,110300.0,0.01058103]
[1756811704935,1.84175825,110310.0,110300.0,0.01058103]
[1756811705137,1.12730203,110310.0,110300.0,0.01262103]
[1756811705339,1.83866825,110310.0,110300.0,0.01262103]
[1756811706081,1.83866825,110310.0,110300.0,0.01058103]
[1756811707242,1.84175825,110310.0,110300.0,0.01058103]
[1756811707453,1.83866825,110310.0,110300.0,0.01058103]
[1756811707636,1.83904499,110310.0,110300.0,0.01058103]
[1756811708309,1.83904499,110310.0,110300.0,0.01262103]
[1756811708504,1.747129,110310.0,110300.0,0.01262103]
[1756811708721,1.595049,110310.0,110300.0,0.01572103]
[1756811708840,1.747049,110310.0,110300.0,0.01572103]
[1756811709077,1.74705212,110310.0,110300.0,0.01572103]
[1756811709561,1.59505212,110310.0,110300.0,0.01572103]
[1756811709693,1.74705212,110310.0,110300.0,0.01572103]
[1756811710074,1.03327916,110310.0,110300.0,0.01572103]
[1756811710324,1.74701212,110310.0,110300.0,0.01572103]
[1756811711491,1.83892811,110310.0,110300.0,0.01058103]
[1756811711698,1.83892811,110310.0,110300.0,0.01255103]
[1756811711847,1.12718515,110310.0,110300.0,0.01255103]
[1756811712051,1.83892811,110310.0,110300.0,0.01551103]
[1756811712291,1.74701212,110310.0,110300.0,0.01551103]
[1756811713310,1.7240833,110310.0,110300.0,0.01551103]
[1756811713527,1.67534432,110310.0,110300.0,0.01551103]
[1756811713984,1.67733432,110310.0,110300.0,0.01551103]
[1756811715183,1.67733916,110310.0,110300.0,0.01551103]
[1756811715385,1.67733916,110310.0,110300.0,0.01058103]
[1756811715585,1.7349548,110310.0,110300.0,0.01255103]
[1756811716013,1.73495471,110310.0,110300.0,0.01255103]
[1756811717240,1.73495471,110310.0,110300.0,0.01058103]
[1756811718757,1.73495471,110310.0,110300.0,0.01255103]
[1756811719162,1.73495471,110310.0,110300.0,0.01551103]
[1756811719374,1.73495471,110310.0,110300.0,0.01255103]
[1756811720725,1.73495471,110310.0,110300.0,0.01551103]
[1756811721131,1.67729907,110310.0,110300.0,0.01551103]
[1756811721869,1.67729907,110310.0,110300.0,0.01255103]
[1756811722481,1.67729907,110310.0,110300.0,0.01551103]
[1756811722680,1.52533907,110310.0,110300.0,0.01551103]
[1756811722984,1.67725907,110310.0,110300.0,0.01551103]
[1756811723197,1.76917506,110310.0,110300.0,0.01551103]
[1756811724593,1.77214506,110310.0,110300.0,0.01058103]
[1756811725296,1.76917506,110310.0,110300.0,0.01058103]
[1756811725735,1.75219598,110310.0,110300.0,0.01058103]
[1756811725961,1.76917471,110310.0,110300.0,0.01058103]
[1756811726195,1.77214471,110310.0,110300.0,0.01058103]
[1756811726405,1.76917484,110310.0,110300.0,0.01058103]
[1756811727595,1.77214484,110310.0,110300.0,0.01058103]
[1756811727892,1.76917484,110310.0,110300.0,0.01255103]
[1756811728095,1.76917484,110310.0,110300.0,0.01551103]
[1756811728588,1.76917484,110310.0,110300.0,0.01255103]
[1756811729616,1.05743188,110310.0,110300.0,0.01551103]
[1756811729822,1.76917484,110310.0,110300.0,0.01551103]
[1756811731658,1.61725484,110310.0,110300.0,0.01551103]
[1756811731878,1.76925484,110310.0,110300.0,0.01551103]
[1756811732517,1.61725484,110310.0,110300.0,0.01551103]
[1756811732730,1.76925484,110310.0,110300.0,0.01551103]
[1756811733567,1.76925484,110310.0,110300.0,0.01255103]
[1756811734004,1.76925484,110310.0,110300.0,0.01551103]
[1756811734005,0.3099299,110310.0,110300.0,0.01551103]
[1756811734212,0.20180313,110310.0,110300.0,0.23338469]
[1756811734415,0.5381787,110310.0,110300.0,0.23338469]
[1756811735749,0.18230722,110310.0,110300.0,0.23338469]
[1756811736171,0.18130722,110310.0,110300.0,0.23338469]
[1756811736379,0.5371787,110310.0,110300.0,0.23338469]
[1756811736598,0.001,110310.0,110300.0,0.23638469]
[1756811736805,0.001,110310.0,110300.0,0.23938469]
[1756811738069,0.001,110310.0,110300.0,0.33130068]
[1756811738898,0.001,110310.0,110300.0,0.68717216]
[1756811739230,0.18230722,110310.0,110300.0,0.33130068]
[1756811739442,0.001,110310.0,110300.0,0.33130068]
[1756811741833,0.001,110310.0,110300.0,0.68717216]
[1756811742251,0.001,110310.0,110300.0,0.71442899]
[1756811744078,0.001,110310.0,110300.0,0.35855751]
[1756811744298,0.001,110310.0,110300.0,0.71442899]
[1756811747670,0.001,110310.0,110300.0,1.07030047]
[1756811747884,0.001,110310.0,110300.0,1.41030047]
[1756811750098,0.001,110310.0,110300.0,0.69855751]
[1756811750313,0.001,110310.0,110300.0,1.41030047]
[1756811752186,0.001,110310.0,110300.0,1.67360047]
[1756811762431,0.001,110310.0,110300.0,2.07360047]
[1756811762902,0.001,110310.0,110300.0,1.67360047]
[1756811763321,0.001,110310.0,110300.0,2.07360047]
[1756811765748,0.001,110310.0,110300.0,2.22584047]
[1756811769484,0.001,110310.0,110300.0,1.51413751]
[1756811769695,0.001,110310.0,110300.0,1.86965888]
[1756811770272,0.001,110310.0,110300.0,1.71737888]
[1756811770446,0.001,110310.0,110300.0,1.90979121]
[1756811774129,0.001,110310.0,110300.0,2.3362514]
[1756811775031,0.00423,110340.0,110330.0,0.18127435]
[1756811775294,0.001,110340.0,110330.0,0.42547034]
[1756811775531,0.00633,110340.0,110330.0,0.42547034]
[1756811775727,0.00633,110340.0,110330.0,0.45272073]
[1756811776300,0.00633,110340.0,110330.0,0.45472073]
[1756811777092,0.00633,110340.0,110330.0,0.45572073]
[1756811780353,0.0031,110340.0,110330.0,0.45572073]
[1756811780567,0.00633,110340.0,110330.0,0.45572073]
[1756811782108,0.00633,110340.0,110330.0,0.30344073]
[1756811782359,0.00633,110340.0,110330.0,0.45556073]
[1756811786318,0.0031,110340.0,110330.0,0.45556073]
[1756811786573,0.00633,110340.0,110330.0,0.30344073]
[1756811786777,0.00633,110340.0,110330.0,0.45556073]
[1756811788769,0.00629,110340.0,110330.0,0.45556073]
[1756811790401,0.00629,110340.0,110330.0,0.30344073]
[1756811790608,0.00629,110340.0,110330.0,0.45552073]
[1756811792381,0.00629,110340.0,110330.0,0.45548073]
[1756811793138,0.00096,110340.0,110330.0,0.46040073]
[1756811793395,0.00096,110340.0,110330.0,0.8159221]
[1756811793848,0.00096,110340.0,110330.0,0.46040073]
[1756811794032,0.00096,110340.0,110330.0,0.8159221]
[1756811795258,0.00096,110340.0,110330.0,0.83395073]
[1756811795442,0.00096,110340.0,110330.0,1.1894721]
[1756811796091,0.00096,110340.0,110330.0,1.1874721]
[1756811796527,0.00196,110340.0,110330.0,1.1578821]
[1756811797163,0.00196,110340.0,110330.0,1.0048821]
[1756811797388,0.00196,110340.0,110330.0,1.1618821]
[1756811799015,0.00196,110340.0,110330.0,1.0098821]
[1756811799228,0.00196,110340.0,110330.0,1.1618421]
[1756811800170,0.00196,110340.0,110330.0,0.80632073]
[1756811800370,0.00196,110340.0,110330.0,1.1618421]
[1756811803837,0.00196,110340.0,110330.0,0.80632073]
[1756811804048,0.00196,110340.0,110330.0,1.1618421]
[1756811805705,0.00196,110340.0,110330.0,1.4251421]
[1756811810377,0.00196,110340.0,110330.0,1.4606621]
[1756811811259,0.33496651,110370.0,110360.0,0.18122508]
[1756811811468,0.51832593,110370.0,110360.0,0.33322508]
[1756811812493,0.53935254,110370.0,110360.0,0.33322508]
[1756811813035,0.18383117,110370.0,110360.0,0.33322508]
[1756811813253,0.53935254,110370.0,110360.0,0.33322508]
[1756811813463,0.54106254,110370.0,110360.0,0.33322508]
[1756811813683,0.54106254,110370.0,110350.0,0.20848667]
[1756811813938,0.18554117,110370.0,110360.0,0.15196]
[1756811814340,0.18554117,110370.0,110360.0,0.15396]
[1756811814803,0.18554117,110370.0,110360.0,0.15196]
[1756811815010,0.54106254,110370.0,110360.0,0.15196]
[1756811816987,0.54106254,110370.0,110360.0,0.15236]
[1756811819082,0.53935254,110370.0,110360.0,0.15236]
[1756811819290,0.54106254,110370.0,110360.0,0.15236]
[1756811821190,0.53935254,110370.0,110360.0,0.33358508]
[1756811822144,0.53935254,110370.0,110360.0,0.15236]
[1756811822576,0.53935254,110370.0,110360.0,0.33358508]
[1756811822706,0.53935254,110370.0,110360.0,0.33258508]
[1756811822905,0.53935254,110370.0,110360.0,0.15136]
[1756811823124,0.54106254,110370.0,110360.0,0.15136]
[1756811823411,0.53935254,110370.0,110360.0,0.15136]
[1756811824043,0.53935254,110370.0,110360.0,0.33258508]
[1756811825339,0.55893368,110370.0,110360.0,0.33258508]
[1756811826373,0.55893368,110370.0,110360.0,0.33342508]
[1756811827380,0.02005289,110370.0,110360.0,0.43057107]
[1756811827586,0.00047175,110370.0,110360.0,0.43057107]
[1756811827997,0.00047175,110370.0,110360.0,0.45781406]
[1756811828961,0.00047175,110370.0,110360.0,0.45981406]
[1756811829380,0.00047175,110370.0,110360.0,0.52949406]
[1756811829613,0.00047175,110370.0,110360.0,0.88501543]
[1756811829820,0.00047175,110370.0,110360.0,0.91960543]
[1756811830244,0.00047175,110370.0,110360.0,1.25960543]
[1756811831713,0.00047175,110370.0,110360.0,1.25929496]
[1756811832743,0.00047175,110370.0,110360.0,1.10709496]
[1756811832952,0.00047175,110370.0,110360.0,1.07250496]
[1756811833163,0.00047175,110370.0,110360.0,0.86941406]
[1756811834648,0.00047175,110370.0,110360.0,1.22462496]
[1756811836219,0.00047175,110370.0,110360.0,0.86949406]
[1756811836438,0.00047175,110370.0,110360.0,1.22470496]
[1756811837241,0.35568265,110370.0,110360.0,0.86949406]
[1756811845470,0.00047175,110370.0,110360.0,0.86949406]
[1756811846836,0.00047175,110370.0,110360.0,0.86925406]
[1756811850201,0.35568265,110370.0,110360.0,0.86925406]
[1756811851269,0.35568265,110370.0,110360.0,0.71729406]
[1756811851485,0.35568265,110370.0,110360.0,0.86933406]
[1756811852253,0.35568265,110370.0,110360.0,0.71729406]
[1756811852471,0.35568265,110370.0,110360.0,0.86933406]
[1756811854486,0.35568265,110370.0,110360.0,0.71729406]
[1756811854696,0.35568265,110370.0,110360.0,0.86929406]
[1756811854899,0.35568265,110370.0,110360.0,0.71729406]
[1756811855148,0.35568265,110370.0,110360.0,0.86925406]
[1756811857159,0.89596221,110370.0,110360.0,0.19083898]
[1756811857370,0.89596221,110370.0,110360.0,0.002]
[1756811857578,0.89596221,110370.0,110360.0,0.15396]
[1756811858097,0.94277614,110370.0,110360.0,0.15396]
[1756811858300,0.92320738,110370.0,110360.0,0.15396]
[1756811859314,1.27841828,110370.0,110360.0,0.002]
[1756811859519,1.31283315,110370.0,110360.0,0.15392]
[1756811859789,1.31283315,110370.0,110360.0,0.002]
[1756811860226,0.24720045,110370.0,110360.0,0.002]
[1756811860435,1.10317546,110370.0,110360.0,0.002]
[1756811860643,1.10953873,110370.0,110360.0,0.002]
[1756811861269,1.10317546,110370.0,110360.0,0.002]
[1756811861498,1.45838636,110370.0,110360.0,0.002]
[1756811861854,1.28465761,110370.0,110360.0,0.002]
[1756811862267,1.31190556,110370.0,110360.0,0.002]
[1756811869222,1.65190556,110370.0,110360.0,0.002]
[1756811869435,1.86302675,110370.0,110360.0,0.002]
[1756811869668,1.87996107,110370.0,110360.0,0.002]
[1756811870234,1.78804508,110370.0,110360.0,0.002]
[1756811870905,1.79004508,110370.0,110360.0,0.002]
[1756811871128,0.1812415,110350.0,110340.0,0.20504]
[1756811871374,0.8916633,110350.0,110340.0,0.00502]
[1756811872180,0.91891471,110350.0,110340.0,0.00502]
[1756811872737,0.91891471,110350.0,110340.0,0.00702]
[1756811880359,0.91891471,110350.0,110340.0,0.00496]
[1756811880569,0.91891471,110350.0,110340.0,0.002]
[1756811880778,1.07087471,110350.0,110340.0,0.002]
[1756811881414,0.18125793,110340.0,110330.0,0.15496]
[1756811881633,0.89167973,110340.0,110330.0,0.24893599]
[1756811882689,0.90571451,110340.0,110330.0,0.24893599]
[1756811883138,0.90571451,110340.0,110330.0,0.25093599]
[1756811883360,0.90571451,110340.0,110330.0,0.25089599]
[1756811883772,0.90571451,110340.0,110330.0,0.09893599]
[1756811883974,1.26092541,110340.0,110330.0,0.00496]
[1756811884261,1.41288541,110340.0,110330.0,0.002]
[1756811884471,1.88324394,110340.0,110330.0,0.002]
[1756811884678,1.90017105,110340.0,110330.0,0.002]
[1756811885297,0.18129079,110320.0,110310.0,0.13404]
[1756811885549,0.89171259,110320.0,110310.0,0.1361]
[1756811885897,0.89171259,110320.0,110310.0,0.32036722]
[1756811886472,0.89171259,110320.0,110310.0,0.13906]
[1756811886677,0.89171259,110320.0,110310.0,0.13953175]
[1756811888056,0.89171259,110320.0,110310.0,0.14153175]
[1756811889821,1.24692349,110320.0,110310.0,0.13947175]
[1756811890069,0.89171259,110320.0,110310.0,0.15739175]
[1756811890220,1.22368342,110320.0,110310.0,0.00247175]
[1756811890414,1.22368342,110320.0,110310.0,0.00540175]
[1756811891274,1.22468342,110320.0,110310.0,0.00340175]
[1756811891521,0.89271259,110320.0,110310.0,0.00340175]
[1756811891753,0.53805664,110320.0,110310.0,0.00340175]
[1756811892992,0.53705664,110320.0,110310.0,0.00340175]
[1756811893210,0.53705664,110320.0,110310.0,0.00047175]
[1756811893413,1.04582249,110320.0,110310.0,0.00047175]
[1756811893618,1.05216943,110320.0,110310.0,0.00047175]
[1756811893823,1.0794297,110320.0,110310.0,0.00047175]
[1756811894029,1.09892852,110320.0,110310.0,0.00047175]
[1756811894848,1.09892852,110320.0,110310.0,0.00340175]
[1756811895423,1.09888852,110320.0,110310.0,0.00340175]
[1756811897358,0.94692852,110320.0,110310.0,0.00340175]
[1756811897766,1.09884852,110320.0,110310.0,0.00554175]
[1756811899138,0.94692852,110320.0,110310.0,0.00554175]
[1756811899357,1.09884852,110320.0,110310.0,0.00554175]
[1756811899770,0.59116267,110320.0,110310.0,0.00554175]
[1756811899955,0.9274297,110320.0,110310.0,0.00554175]
[1756811900191,0.94692891,110320.0,110310.0,0.00554175]
[1756811901353,0.59116306,110320.0,110310.0,0.00554175]
[1756811901813,0.74304306,110320.0,110310.0,0.00554175]
[1756811903394,0.56390279,110320.0,110310.0,0.18911531]
[1756811903606,0.56390279,110320.0,110310.0,0.18684897]
[1756811903832,0.56390419,110320.0,110310.0,0.00554175]
[1756811904249,0.56390419,110320.0,110310.0,0.18684897]
[1756811904621,0.3826134,110320.0,110310.0,0.18684897]
[1756811904836,0.37626506,110320.0,110310.0,0.18684897]
[1756811905044,0.35676585,110320.0,110310.0,0.18684897]
[1756811905456,0.37627379,110320.0,110310.0,0.18684897]
[1756811906254,0.55756458,110320.0,110310.0,0.18684897]
[1756811907508,0.20179873,110320.0,110310.0,0.18684897]
[1756811907771,0.02050794,110320.0,110310.0,0.18684897]
[1756811908182,0.20179873,110320.0,110310.0,0.18684897]
[1756811908439,0.0268631,110320.0,110310.0,0.18684897]
[1756811908623,0.02050794,110320.0,110310.0,0.18684897]
[1756811908783,0.20179873,110320.0,110310.0,0.18684897]
[1756811909193,0.20815647,110320.0,110310.0,0.18684897]
[1756811910633,0.56392232,110320.0,110310.0,0.18684897]
[1756811910818,0.02686568,110320.0,110310.0,0.27876496]
[1756811910976,0.56392232,110320.0,110310.0,0.27876496]
[1756811911177,0.55756458,110320.0,110310.0,0.27876496]
[1756811911742,0.56392445,110320.0,110310.0,0.27876496]
[1756811911954,0.56392445,110320.0,110310.0,0.09238774]
[1756811912199,0.56392445,110320.0,110310.0,0.24917774]
[1756811912407,0.56392445,110320.0,110310.0,0.43048496]
[1756811914127,0.56392445,110320.0,110310.0,0.09531774]
[1756811914342,0.56392445,110320.0,110310.0,0.24703774]
[1756811914556,0.5724208,110320.0,110310.0,0.24703774]
[1756811915399,0.5724208,110320.0,110310.0,0.42834496]
[1756811916381,0.5724208,110320.0,110310.0,0.43048496]
[1756811916608,0.5724208,110320.0,110310.0,0.24917774]
[1756811917202,0.56393153,110320.0,110310.0,0.09745774]
[1756811917423,0.56393153,110320.0,110310.0,0.24917774]
[1756811917858,0.56393153,110320.0,110310.0,0.09745774]
[1756811918068,0.56393153,110320.0,110310.0,0.24917774]
[1756811920297,0.56393153,110320.0,110310.0,0.00340175]
[1756811920506,0.56393153,110320.0,110310.0,0.15512175]
[1756811921466,0.56393378,110320.0,110310.0,0.15219175]
[1756811922094,0.56393378,110320.0,110310.0,0.15515175]
[1756811923079,0.56393378,110320.0,110310.0,0.15219175]
[1756811923296,0.56393378,110320.0,110310.0,0.15515175]
[1756811923503,0.56393378,110320.0,110310.0,0.00343175]
[1756811925255,0.56393739,110320.0,110310.0,0.00343175]
[1756811927793,0.59119702,110320.0,110310.0,0.00343175]
[1756811930785,0.59119702,110320.0,110310.0,0.00047175]
[1756811930925,0.61668982,110320.0,110310.0,0.00047175]
[1756811934450,0.59969472,110320.0,110310.0,0.00047175]
[1756811934867,0.61668747,110320.0,110310.0,0.00047175]
[1756811935546,1.31245332,110320.0,110310.0,0.00047175]
[1756811935774,0.98111699,110320.0,110310.0,0.00047175]
[1756811935999,0.98111268,110320.0,110310.0,0.00047175]
[1756811936227,1.13283268,110320.0,110310.0,0.00047175]
[1756811936877,1.13283043,110320.0,110310.0,0.00047175]
[1756811938337,1.22474642,110320.0,110310.0,0.00047175]
[1756811938474,1.13283043,110320.0,110310.0,0.00047175]
[1756811939574,1.13281938,110320.0,110310.0,0.00047175]
[1756811940888,1.48858523,110320.0,110310.0,0.00047175]
[1756811941983,0.77705353,110320.0,110310.0,0.00047175]
[1756811942231,1.33686523,110320.0,110310.0,0.00047175]
[1756811942392,0.98109938,110320.0,110310.0,0.00047175]
[1756811942774,1.13281938,110320.0,110310.0,0.00343175]
[1756811943223,1.15723051,110320.0,110310.0,0.00343175]
[1756811943429,1.00551051,110320.0,110310.0,0.00343175]
[1756811943638,1.15723051,110320.0,110310.0,0.00343175]
[1756811945009,1.15723051,110320.0,110310.0,0.00541175]
[1756811945469,1.1402394,110320.0,110310.0,0.00541175]
[1756811945668,1.15721578,110320.0,110310.0,0.00541175]
[1756811946581,1.15721578,110320.0,110310.0,0.00343175]
[1756811947387,1.15721578,110320.0,110310.0,0.00541175]
[1756811947585,0.98108465,110320.0,110310.0,0.00541175]
[1756811947793,1.13280465,110320.0,110310.0,0.00541175]
[1756811947996,1.10837513,110320.0,110310.0,0.00541175]
[1756811948975,1.09139867,110320.0,110310.0,0.00541175]
[1756811949191,0.75139867,110320.0,110310.0,0.00541175]
[1756811949407,0.74291044,110320.0,110310.0,0.00541175]
[1756811949614,0.59119044,110320.0,110310.0,0.00541175]
[1756811949823,0.74291044,110320.0,110310.0,0.00541175]
[1756811950482,0.38714459,110320.0,110310.0,0.00541175]
[1756811950690,0.74291044,110320.0,110310.0,0.00541175]
[1756811952376,0.59119044,110320.0,110310.0,0.00541175]
[1756811952550,0.74291044,110320.0,110310.0,0.00541175]
[1756811953519,1.09852377,110320.0,110310.0,0.00541175]
[1756811956263,1.09215754,110320.0,110310.0,0.00541175]
[1756811956495,1.09852449,110320.0,110310.0,0.00541175]
[1756811956679,1.10701386,110320.0,110310.0,0.00541175]
[1756811957546,1.10701386,110320.0,110310.0,0.00343175]
[1756811957741,1.10701386,110320.0,110310.0,0.00047175]
[1756811958201,1.12399312,110320.0,110310.0,0.00047175]
[1756811958411,1.9115987,110320.0,110310.0,0.00047175]
[1756811958625,1.93602822,110320.0,110310.0,0.00047175]
[1756811958844,1.78430822,110320.0,110310.0,0.00047175]
[1756811959064,1.93602822,110320.0,110310.0,0.00047175]
[1756811959275,1.84411223,110320.0,110310.0,0.00047175]
[1756811960202,0.77704346,110320.0,110310.0,0.00047175]
[1756811960425,1.26219439,110320.0,110310.0,0.00047175]
[1756811960570,1.44348518,110320.0,110310.0,0.00047175]
[1756811965201,1.53540117,110320.0,110310.0,0.00047175]
[1756811966984,1.50356559,110320.0,110310.0,0.00047175]
[1756811967202,1.53540223,110320.0,110310.0,0.00047175]
[1756811968048,1.53540163,110320.0,110310.0,0.00047175]
[1756811969685,2.44428661,110320.0,110310.0,0.00047175]
[1756811969925,2.08859702,110320.0,110310.0,0.00047175]
[1756811970122,2.06370093,110320.0,110310.0,0.00047175]
[1756811970544,2.05268501,110320.0,110310.0,0.00047175]
[1756811972106,2.05668501,110320.0,110310.0,0.00047175]
[1756811972488,2.05968501,110320.0,110310.0,0.00047175]
[1756811972925,2.07388019,110320.0,110310.0,0.00047175]
[1756811973173,2.07088019,110320.0,110310.0,0.00047175]
[1756811973406,2.52022152,110320.0,110310.0,1e-08]
[1756811973616,2.49066416,110320.0,110310.0,1e-08]
[1756811974172,2.49065561,110320.0,110310.0,1e-08]
[1756811975341,2.33893561,110320.0,110310.0,1e-08]
[1756811975484,2.08287164,110320.0,110310.0,1e-08]
[1756811976102,2.11540704,110320.0,110310.0,1e-08]
[1756811977654,2.08993327,110320.0,110310.0,1e-08]
[1756811977857,2.47103775,110320.0,110310.0,1e-08]
[1756811978449,2.47103717,110320.0,110310.0,1e-08]
[1756811978663,3.2019747,110320.0,110310.0,1e-08]
[1756811978878,3.19350307,110320.0,110310.0,1e-08]
[1756811979338,3.03278307,110320.0,110310.0,1e-08]
[1756811979571,3.18530307,110320.0,110310.0,1e-08]
[1756811979789,3.16940698,110320.0,110310.0,1e-08]
[1756811980002,3.01688698,110320.0,110310.0,1e-08]
[1756811980210,3.16940698,110320.0,110310.0,1e-08]
[1756811980628,1.02130721,110310.0,110300.0,0.0134]
[1756811980832,2.55034047,110310.0,110300.0,0.01354103]
[1756811981038,2.55034047,110310.0,110300.0,0.01058103]
[1756811981245,2.5638815,110310.0,110300.0,0.01058103]
[1756811981652,2.5638815,110310.0,110300.0,0.01354103]
[1756811982090,2.58339002,110310.0,110300.0,0.01354103]
[1756811982297,2.58539002,110310.0,110300.0,0.01058103]
[1756811982501,2.58739002,110310.0,110300.0,0.01354103]
[1756811982881,2.61177469,110310.0,110300.0,0.01354103]
[1756811983221,2.58739002,110310.0,110300.0,0.01354103]
[1756811984047,0.33132366,110300.0,110290.0,0.0004]